bitfinex-derivatives/quotes_ETHF0:USTF0_20251119
["timestamp","ask_amount","ask_price","bid_price","bid_amount"]
[1763573935794,4.47567432,2907.2,2907.0,3.2078]
[1763573935994,3.66964614,2907.3,2907.0,3.2078]
[1763573936291,4.47567432,2907.2,2907.0,3.2078]
[1763573936694,4.47567432,2907.1,2907.0,3.2078]
[1763573936888,0.004084,2907.3,2907.0,3.2078]
[1763573937089,4.47567432,2907.2,2907.0,3.2078]
[1763573937596,0.004084,2907.3,2906.8,3.583]
[1763573937597,4.47567432,2907.1,2906.8,3.583]
[1763573937800,4.47567432,2907.2,2906.8,3.583]
[1763573937996,3.66964614,2907.3,2906.8,3.583]
[1763573938192,3.66964614,2907.3,2907.0,3.2078]
[1763573938400,4.47567432,2907.2,2907.0,3.2078]
[1763573938599,0.004084,2907.3,2907.0,3.2078]
[1763573938796,4.47567432,2907.2,2907.1,4.44481123]
[1763573939093,4.47567432,2907.2,2907.1,0.55771]
[1763573939292,4.47567432,2907.2,2907.1,6.55771]
[1763573939497,4.47567432,2907.2,2907.1,4.93601767]
[1763573939893,4.06256306,2907.2,2907.1,4.93601767]
[1763573940395,4.06256306,2907.2,2907.1,45.17830767]
[1763573940594,5.54146306,2907.2,2906.6,3.2078]
[1763573940791,4.06256306,2907.1,2906.4,0.06505069]
[1763573940990,3.2078,2906.7,2906.4,0.06505069]
[1763573941197,1.4789,2905.6,2905.4,12.4008]
[1763573941400,3.2078,2905.5,2904.5,3.2078]
[1763573941594,3.2078,2905.2,2904.1,12.389]
[1763573941894,3.2078,2904.9,2904.6,4.51837547]
[1763573942088,0.00361147,2904.9,2904.6,0.00356688]
[1763573942291,4.06256306,2904.8,2904.6,0.00356688]
[1763573942494,5.56366306,2904.8,2904.6,0.00356688]
[1763573942694,4.06256306,2904.7,2904.6,0.00356688]
[1763573943197,3.2078,2906.1,2904.6,8.27966457]
[1763573943402,3.2078,2906.1,2905.5,3.2078]
[1763573943694,1.4789,2906.4,2905.5,3.2078]
[1763573943695,3.2078,2906.4,2905.8,3.2078]
[1763573943901,3.2078,2906.7,2906.2,3.2078]
[1763573944102,1.4789,2907.2,2906.5,3.2078]
[1763573944303,0.00515764,2907.1,2906.8,3.2078]
[1763573944605,0.00515764,2907.1,2906.8,3.21221507]
[1763573944898,0.00515764,2907.1,2906.9,4.47397056]
[1763573945099,0.00515764,2907.1,2906.8,6.76421507]
[1763573945297,3.21295764,2907.1,2906.8,0.00441507]
[1763573945802,3.21295764,2907.1,2906.8,1.507e-05]
[1763573946096,3.21295764,2907.1,2905.9,6.0268]
[1763573946301,3.2078,2906.6,2905.9,6.0268]
[1763573946500,3.2078,2906.9,2906.2,3.2078]
[1763573946898,3.2078,2906.7,2906.2,3.21042663]
[1763573947102,3.2078,2907.0,2906.2,0.00778427]
[1763573947396,0.00515764,2907.1,2906.2,0.00778427]
[1763573947397,3.2078,2906.7,2906.2,0.00778427]
[1763573948001,3.21295764,2907.1,2906.2,3.21558427]
[1763573948206,3.21295764,2907.1,2906.5,3.2078]
[1763573948499,0.00515764,2907.1,2906.4,3.2078]
[1763573948702,3.21295764,2907.1,2906.2,2.43797096]
[1763573948915,3.2078,2906.7,2906.2,0.00778427]
[1763573949201,3.2078,2906.8,2906.2,0.00778427]
[1763573949405,1.5011,2906.4,2906.2,0.00778427]
[1763573949895,1.5011,2906.4,2905.2,46.43798669]
[1763573950203,3.2078,2906.1,2905.5,3.2078]
[1763573950602,3.2078,2906.1,2905.2,3.2078]
[1763573950996,3.2078,2905.5,2905.2,0.0033084]
[1763573951499,3.2078,2905.5,2903.7,6.78642556]
[1763573951500,0.55806,2905.4,2904.0,3.2078]
[1763573951807,4.7089,2904.8,2903.7,3.2078]
[1763573952003,4.7089,2904.8,2904.2,12.39715764]
[1763573952208,4.71405764,2904.8,2904.2,12.39715764]
[1763573952405,4.7176344,2904.8,2904.2,12.40032171]
[1763573952701,3.2078,2904.5,2904.2,0.00832171]
[1763573953903,1.5098344,2904.8,2904.3,3.2078]
[1763573954612,1.5098344,2904.8,2904.2,0.00832171]
[1763573954904,3.2078,2904.4,2904.2,0.00832171]
[1763573955407,1.5011,2904.0,2903.4,3.2078]
[1763573956107,3.2078,2904.7,2903.8,3.2078]
[1763573956306,3.2078,2904.7,2904.0,0.0034385]
[1763573956602,3.2078,2904.4,2904.0,0.0034385]
[1763573957404,1.5098344,2904.8,2904.2,3.2078]
[1763573957601,4.7089,2905.6,2904.6,3.2078]
[1763573957798,4.7089,2905.6,2905.2,3.2078]
[1763573957799,1.5011,2905.6,2905.2,3.2078]
[1763573958005,1.5011,2905.6,2905.1,3.2078]
[1763573958495,1.5011,2905.6,2905.4,3.2078]
[1763573958696,0.00285471,2905.6,2905.1,3.2078]
[1763573958898,0.00285471,2905.6,2905.4,3.2078]
[1763573959301,3.2078,2906.5,2905.4,3.2078]
[1763573959512,4.7089,2906.4,2905.6,3.2078]
[1763573959706,4.7089,2906.4,2905.5,4.42756167]
[1763573960008,4.7089,2906.4,2905.6,3.2078]
[1763573960409,4.7089,2906.4,2905.7,0.00515764]
[1763573960410,0.00515764,2906.3,2905.7,0.00515764]
[1763573960597,3.2078,2906.1,2905.7,0.00515764]
[1763573960802,3.2078,2905.8,2905.7,0.00515764]
[1763573961002,3.2078,2905.8,2905.0,3.563]
[1763573961298,3.2078,2906.1,2905.4,3.2078]
[1763573961503,0.00515764,2906.3,2905.6,3.2078]
[1763573961705,0.00515764,2906.3,2905.9,3.2078]
[1763573962015,0.00515764,2906.3,2906.0,3.2078]
[1763573962714,3.2078,2907.0,2906.0,3.2078]
[1763573962915,3.2078,2907.0,2906.3,3.2078]
[1763573963408,1.5011,2907.2,2906.6,3.2078]
[1763573963607,1.50625764,2907.2,2906.9,3.2078]
[1763573963806,1.5011,2908.0,2907.0,7.30361798]
[1763573964003,3.2078,2908.5,2907.6,3.2078]
[1763573964206,3.2078,2908.2,2907.7,3.2078]
[1763573964404,1.5011,2907.9,2907.4,3.2078]
[1763573964818,1.20098946,2910.4,2909.0,0.55734]
[1763573965114,12.32796434,2909.8,2909.7,3.2078]
[1763573965307,8.62501029,2909.8,2909.7,3.2078]
[1763573965615,8.62501029,2909.8,2909.7,13.60842506]
[1763573966215,8.62501029,2909.8,2909.7,54.40842506]
[1763573966922,8.62501029,2909.8,2909.7,48.40842506]
[1763573967217,8.62501029,2909.8,2909.7,54.40842506]
[1763573967407,8.62501029,2909.8,2909.7,3.2078]
[1763573968310,21.26881029,2909.8,2909.1,0.00515764]
[1763573968518,1.4092,2909.0,2907.8,3.2078]
[1763573968713,1.4092,2909.0,2907.7,3.2078]
[1763573968714,3.2078,2908.9,2907.7,3.2078]
[1763573968908,3.2078,2908.8,2907.7,3.2078]
[1763573969108,3.2078,2908.8,2908.1,3.2078]
[1763573969417,0.00515764,2908.7,2908.5,3.2078]
[1763573969916,0.00515764,2908.7,2908.2,0.00515764]
[1763573970414,3.2078,2908.6,2908.2,0.00515764]
[1763573970612,3.2078,2908.6,2907.6,3.2078]
[1763573970918,0.00515764,2908.7,2908.0,3.2078]
[1763573971116,0.00515764,2908.7,2904.3,4.2579328]
[1763573971117,0.55757,2907.9,2906.2,3.2078]
[1763573971308,0.55757,2907.9,2905.2,1.82905288]
[1763573971309,3.2078,2906.4,2905.4,3.2078]
[1763573971508,3.2078,2906.1,2905.8,0.00515764]
[1763573971905,0.00515764,2906.3,2905.8,3.21295764]
[1763573972112,0.00515764,2906.3,2906.0,1.5144]
[1763573972315,3.2078,2906.2,2905.8,0.00515764]
[1763573972819,0.00515764,2906.3,2905.8,3.21295764]
[1763573973211,3.2078,2906.1,2905.8,0.00515764]
[1763573973615,0.00515764,2906.3,2905.8,0.00515764]
[1763573974113,3.2078,2906.1,2905.8,0.00515764]
[1763573974319,0.00515764,2906.3,2905.8,0.00515764]
[1763573974723,3.2078,2906.1,2905.8,0.00515764]
[1763573974918,0.00515764,2906.3,2905.8,0.00515764]
[1763573975222,0.00515764,2906.3,2906.0,1.5144]
[1763573975424,0.00515764,2906.3,2906.2,3.2078]
[1763573975810,0.00515764,2906.3,2906.0,1.5144]
[1763573976010,0.00515764,2906.3,2906.2,3.2078]
[1763573976819,0.00515764,2906.3,2906.1,3.576]
[1763573977115,3.21295764,2906.3,2905.7,12.40323181]
[1763573977320,3.2078,2905.9,2905.7,12.38043181]
[1763573978517,3.21295764,2906.3,2905.7,18.38043181]
[1763573978724,0.00515764,2906.3,2906.1,1.5144]
[1763573978912,0.00515764,2906.3,2905.8,15.00383085]
[1763573978913,0.00515764,2906.3,2905.8,11.25921287]
[1763573979221,0.00515764,2906.3,2905.8,6.7808]
[1763573979920,0.00515764,2906.3,2906.1,3.2078]
[1763573980319,0.00515764,2906.3,2906.1,4.7222]
[1763573981020,3.2078,2907.5,2906.2,4.4668364]
[1763573981220,3.2078,2907.4,2906.5,3.2078]
[1763573981412,3.2078,2906.9,2906.2,7.6746364]
[1763573981618,3.2078,2907.2,2906.5,3.2078]
[1763573981924,3.2078,2907.5,2906.6,4.40857385]
[1763573982115,0.00515764,2907.3,2906.8,0.00515764]
[1763573982622,3.2078,2906.9,2906.8,0.00515764]
[1763573983023,3.2078,2906.9,2905.3,0.55805]
[1763573983024,9.2078,2906.9,2905.8,3.573]
[1763573983315,3.2078,2906.3,2905.8,3.573]
[1763573984017,3.2078,2906.6,2905.9,3.2078]
[1763573984212,3.2078,2906.8,2905.9,3.2078]
[1763573984418,3.2078,2906.5,2905.9,3.2078]
[1763573984621,3.2078,2906.4,2905.9,3.2078]
[1763573984822,3.2078,2906.7,2905.9,3.2078]
[1763573985022,3.2078,2906.4,2905.9,3.2078]
[1763573985724,3.2078,2906.7,2905.9,3.2078]
[1763573986022,0.00515764,2907.3,2905.8,3.5764385]
[1763573986023,3.21295764,2907.3,2906.5,3.2078]
[1763573986223,0.00515764,2907.3,2907.0,1.5144]
[1763573986418,0.00515764,2907.3,2907.1,3.2078]
[1763573986919,3.2078,2907.9,2907.2,4.93684354]
[1763573987124,3.2078,2907.9,2907.5,3.74461798]
[1763573987326,3.2078,2908.3,2907.7,3.2078]
[1763573987625,3.2078,2908.3,2907.2,0.55769]
[1763573987927,0.00515764,2908.0,2907.5,0.00515764]
[1763573988121,3.21295764,2908.0,2907.5,0.00515764]
[1763573988626,8.6217863,2909.8,2907.9,4.7222]
[1763573988826,8.6217863,2909.8,2909.7,1.5144]
[1763573989123,3.2078,2910.9,2909.7,15.0419455]
[1763573989324,1.4921,2911.5,2910.0,3.2078]
[1763573989325,3.2078,2911.3,2910.0,3.2078]
[1763573989520,3.2078,2911.2,2910.1,3.2078]
[1763573989830,0.00515764,2910.8,2910.4,3.2078]
[1763573990128,0.00515764,2910.8,2910.7,3.2078]
[1763573990518,3.21295764,2910.8,2910.2,0.00515764]
[1763573990729,3.2078,2910.5,2910.2,0.00515764]
[1763573990930,1.4921,2910.6,2910.2,0.00515764]
[1763573991422,0.00515764,2910.8,2910.2,3.21295764]
[1763573991625,3.2078,2910.7,2910.2,0.00515764]
[1763573991924,0.00515764,2910.8,2910.6,3.2078]
[1763573992723,0.00287942,2911.3,2910.7,3.74461798]
[1763573993029,4.6999,2912.4,2911.2,6.95241798]
[1763573993227,3.2078,2912.7,2911.7,3.74461798]
[1763573993424,4.1664,2913.3,2912.0,3.2078]
[1763573993731,0.00515764,2912.9,2912.3,0.00515764]
[1763573993917,0.00515764,2912.9,2912.6,3.2078]
[1763573994123,3.2078,2912.8,2912.6,0.00332045]
[1763573994323,0.00918619,2912.9,2912.6,0.00332045]
[1763573994517,0.00918619,2912.9,2912.3,0.00515764]
[1763573994518,3.2078,2912.8,2912.3,0.00515764]
[1763573994725,6.00918619,2912.9,2911.2,3.74461798]
[1763573994726,3.2078,2912.4,2911.7,3.2078]
[1763573995126,0.00918619,2912.9,2912.0,3.2078]
[1763573995626,3.2078,2912.7,2912.2,0.00515764]
[1763573995822,3.2078,2912.4,2911.7,3.2078]
[1763573996024,1.4921,2912.0,2911.7,3.2078]
[1763573996528,3.4336,2911.9,2911.0,3.2078]
[1763573996825,10.6999,2912.0,2911.2,0.00515764]
[1763573996826,1.4921,2911.5,2911.2,0.00515764]
[1763573997031,3.2078,2911.3,2911.0,0.00271373]
[1763573997224,3.2078,2911.3,2910.3,3.2078]
[1763573997423,3.2078,2910.9,2910.3,3.2078]
[1763573997631,3.2078,2910.9,2910.0,3.2078]
[1763573997830,3.2078,2910.9,2910.4,3.2078]
[1763573998031,3.21295764,2910.9,2910.4,3.2112385]
[1763573998329,0.00515764,2910.9,2910.4,3.21439179]
[1763573998733,0.00515764,2910.9,2910.8,3.2078]
[1763573998934,0.00515764,2910.9,2910.5,3.2078]
[1763574000135,3.2078,2910.7,2910.4,0.00659179]
[1763574000334,0.55707,2910.5,2908.8,3.2078]
[1763574000633,3.2078,2909.5,2908.4,15.59589]
[1763574000833,3.2078,2909.1,2908.4,12.38809]
[1763574001134,3.2078,2908.5,2906.5,3.2078]
[1763574001331,3.2078,2907.3,2906.6,3.2078]
[1763574001537,3.2078,2907.3,2907.0,0.00292407]
[1763574001835,3.2078,2907.7,2907.0,1.51732407]
[1763574002137,0.00515764,2908.0,2907.4,3.2078]
[1763574002439,0.00296805,2908.5,2907.8,3.2078]
[1763574002734,3.2078,2908.9,2908.2,3.2078]
[1763574002927,3.2078,2909.7,2909.0,1.4058]
[1763574003132,3.2078,2909.5,2909.0,1.4058]
[1763574003332,3.2078,2909.4,2909.0,1.4058]
[1763574003527,3.21295764,2909.5,2909.0,1.41095763]
[1763574004035,0.00784256,2909.5,2909.0,1.41095763]
[1763574004436,3.2078,2909.3,2909.0,1.41095763]
[1763574004639,3.2078,2909.3,2909.0,0.00515763]
[1763574004829,6.64460001,2909.3,2909.0,0.00515763]
[1763574005029,6.64460001,2909.3,2906.8,0.55777]
[1763574005030,9.2078,2909.3,2907.3,3.2078]
[1763574005230,3.2078,2908.1,2907.0,4.61498054]
[1763574005431,3.2078,2907.5,2907.0,1.51732407]
[1763574005635,3.2078,2907.1,2907.0,0.00292407]
[1763574005834,3.21124204,2907.1,2906.1,1.2175]
[1763574006042,3.2078,2906.3,2905.7,12.37688]
[1763574006339,3.2078,2905.9,2905.7,12.37688]
[1763574006833,3.2078,2905.9,2905.7,12.38117492]
[1763574007038,3.76576,2905.8,2905.7,0.00429492]
[1763574007339,3.76576,2905.8,2903.7,3.2078]
[1763574007537,3.2078,2905.5,2904.7,3.2078]
[1763574007841,3.09765647,2906.4,2904.0,1.4058]
[1763574007842,0.00515764,2905.4,2905.1,4.6136]
[1763574008338,0.00515764,2905.4,2905.1,0.00812849]
[1763574008339,3.2078,2905.3,2905.1,0.00812849]
[1763574008534,0.00515764,2905.4,2905.1,1.40963357]
[1763574008736,3.2078,2906.6,2905.3,3.2078]
[1763574008946,3.2078,2906.6,2905.9,3.2078]
[1763574009136,3.2078,2906.9,2906.2,4.6136]
[1763574009335,0.00344204,2907.1,2906.3,3.2078]
[1763574009541,0.00344204,2907.1,2906.6,3.2078]
[1763574010044,0.00859968,2907.1,2906.6,3.21295764]
[1763574010231,3.2078,2906.9,2906.6,0.00515764]
[1763574010634,0.00859968,2907.1,2906.6,0.00515764]
[1763574010942,0.00859968,2907.1,2906.7,3.2078]
[1763574011335,0.00859968,2907.1,2906.6,3.21295764]
[1763574011531,0.00859968,2907.1,2907.0,3.2078]
[1763574011941,0.00859968,2907.1,2906.6,0.00515764]
[1763574011942,3.21639968,2907.1,2906.6,0.00515764]
[1763574012141,0.00859968,2907.1,2907.0,3.2078]
[1763574012346,3.2078,2908.8,2907.3,1.4058]
[1763574012543,3.2078,2909.1,2908.1,3.2078]
[1763574012740,3.2078,2908.5,2907.8,3.2078]
[1763574013045,3.2078,2908.7,2907.8,3.2078]
[1763574013244,0.00515764,2908.5,2908.0,0.00515764]
[1763574013545,3.2078,2908.4,2908.0,0.00515764]
[1763574013935,3.21295764,2908.5,2908.0,0.00515764]
[1763574014446,0.00515764,2908.5,2908.4,1.4058]
[1763574014645,0.00515764,2908.5,2908.0,0.00515764]
[1763574014848,3.21295764,2908.5,2908.0,0.00515764]
[1763574015147,0.00515764,2908.5,2908.0,0.00515764]
[1763574015546,3.2078,2908.2,2908.0,0.00515764]
[1763574016550,12.6462,2908.2,2907.8,0.00091724]
[1763574016755,3.2078,2907.9,2907.8,0.00091724]
[1763574017347,3.2078,2908.2,2907.8,0.00091724]
[1763574017544,3.2078,2907.9,2907.8,0.00091724]
[1763574017746,3.2078,2908.2,2907.8,0.00091724]
[1763574018046,3.2078,2907.9,2907.8,0.00091724]
[1763574018352,3.76536,2907.9,2907.8,0.00091724]
[1763574018838,7.20376,2907.9,2907.8,0.00091724]
[1763574019042,3.76536,2907.9,2907.8,0.00091724]
[1763574019444,13.20376,2907.9,2907.8,0.00091724]
[1763574019645,3.2078,2907.9,2907.8,0.00091724]
[1763574020343,0.00515764,2908.5,2908.0,1.4058]
[1763574020549,3.2078,2909.3,2908.3,3.2078]
[1763574020748,3.2078,2909.3,2908.2,3.2078]
[1763574021147,3.2078,2909.6,2908.4,3.2078]
[1763574021347,3.2078,2909.3,2908.8,3.2078]
[1763574021549,3.21675929,2909.3,2908.5,3.2078]
[1763574021750,0.00895929,2909.3,2909.0,4.6136]
[1763574021948,0.00895929,2909.3,2909.0,1.4058]
[1763574022149,0.00895929,2909.3,2909.0,4.6136]
[1763574022350,0.55716,2910.0,2909.0,4.6136]
[1763574022551,3.2078,2909.5,2909.0,1.4058]
[1763574022851,3.2078,2909.9,2909.2,3.2078]
[1763574023052,3.2078,2909.9,2909.0,1.4058]
[1763574023053,3.2078,2910.2,2909.5,3.2078]
[1763574023260,12.37983,2910.4,2910.0,3.2078]
[1763574023444,12.37983,2910.4,2910.0,4.61631882]
[1763574023445,0.00368381,2910.4,2910.0,4.61631882]
[1763574023643,0.00515764,2910.5,2910.0,4.61631882]
[1763574023851,0.00515764,2910.5,2910.1,3.2078]
[1763574024052,0.00515764,2910.5,2910.0,1.40851882]
[1763574024256,0.00515764,2910.5,2910.3,3.2078]
[1763574024652,0.55686,2911.6,2910.4,3.2078]
[1763574024653,3.2078,2911.4,2910.4,3.2078]
[1763574025159,3.2078,2911.3,2910.4,3.2078]
[1763574025553,0.00515764,2911.1,2910.5,3.2078]
[1763574025749,0.00515764,2911.1,2910.8,3.2078]
[1763574026164,0.00515764,2911.1,2911.0,1.4499]
[1763574026855,3.2078,2911.1,2911.0,1.4499]
[1763574027054,3.2078,2911.1,2910.2,3.2078]
[1763574027254,3.2078,2911.1,2910.5,3.2078]
[1763574027448,3.2078,2911.1,2910.0,1.40851882]
[1763574027449,3.2078,2910.9,2910.0,1.40851882]
[1763574027660,3.2078,2910.9,2910.1,3.2078]
[1763574027861,0.00515764,2910.8,2910.4,3.2078]
[1763574028158,0.00515764,2910.8,2910.7,3.2078]
[1763574029252,0.00268402,2910.9,2910.7,3.2078]
[1763574029454,0.00268402,2910.9,2910.4,3.2078]
[1763574029652,0.00268402,2910.9,2910.0,1.40851882]
[1763574029653,3.2078,2910.7,2910.0,4.61631882]
[1763574029854,3.2078,2910.4,2910.0,1.40851882]
[1763574030361,3.2078,2910.1,2909.9,0.00515764]
[1763574030560,3.2078,2910.1,2909.0,4.6136]
[1763574031046,0.00343849,2910.5,2910.0,1.4499]
[1763574031465,0.00343849,2910.5,2910.0,1.45860168]
[1763574031858,0.00343849,2910.5,2910.0,4.66640168]
[1763574032256,0.00343849,2910.5,2910.0,1.45860168]
[1763574032454,0.00343849,2910.5,2910.3,3.2078]
[1763574032861,0.00343849,2910.5,2910.0,1.45860168]
[1763574033056,0.00343849,2910.5,2910.2,3.2078]
[1763574033564,0.00268402,2910.9,2910.2,3.2078]
[1763574033756,0.00268402,2910.9,2910.6,3.2078]
[1763574034157,3.2078,2911.8,2910.6,3.2078]
[1763574034361,3.2078,2911.8,2911.0,4.7295]
[1763574034558,3.2078,2911.4,2911.1,0.00515764]
[1763574034754,3.21295763,2911.7,2911.1,0.00515764]
[1763574035153,0.00848603,2911.7,2911.5,3.2078]
[1763574035353,3.2078,2913.0,2912.0,1.5217]
[1763574035561,12.36803,2913.2,2912.0,1.5217]
[1763574035562,12.36803,2913.2,2913.0,1.5217]
[1763574036160,12.36803,2913.2,2913.0,4.7295]
[1763574036461,3.2078,2913.7,2913.0,4.73356926]
[1763574036661,3.2078,2913.7,2913.0,3.21186926]
[1763574036964,3.2078,2914.0,2913.0,3.21186926]
[1763574037355,3.21093916,2914.0,2913.3,3.2078]
[1763574038060,0.00313916,2914.0,2913.7,3.2078]
[1763574038258,12.36247,2914.5,2913.7,3.2078]
[1763574038259,12.36247,2914.5,2913.8,6.0]
[1763574038460,1.4688,2916.0,2914.4,3.2078]
[1763574038652,3.2078,2916.7,2915.4,3.09765647]
[1763574039054,1.4688,2916.0,2915.3,3.2078]
[1763574039264,1.4688,2916.0,2915.4,0.00242005]
[1763574039463,1.4688,2916.0,2915.6,3.2078]
[1763574039766,3.2078,2915.7,2914.9,3.21294871]
[1763574039967,4.6766,2916.0,2915.3,3.2078]
[1763574040358,3.2078,2915.7,2915.0,3.2078]
[1763574040560,4.6766,2916.0,2915.3,3.2078]
[1763574040868,3.2078,2916.4,2915.6,3.2078]
[1763574041161,3.2078,2916.4,2915.3,3.10102211]
[1763574041162,1.4688,2916.0,2915.3,0.00336564]
[1763574041361,1.4688,2916.0,2915.5,3.2078]
[1763574041760,3.2078,2915.7,2915.3,0.00336564]
[1763574042063,3.2078,2915.8,2915.3,0.00336564]
[1763574042660,1.4688,2915.0,2914.9,0.00514871]
[1763574042864,0.55622,2914.9,2913.7,3.2078]
[1763574043161,3.2078,2914.3,2913.4,3.2078]
[1763574043364,1.4688,2914.0,2913.2,3.2078]
[1763574043564,1.4688,2914.0,2913.5,3.2078]
[1763574043867,1.47717681,2914.0,2913.5,0.00514871]
[1763574044463,3.2078,2913.9,2913.5,0.00514871]
[1763574044753,1.47717681,2914.0,2913.5,0.00514871]
[1763574044754,1.47717681,2914.0,2913.5,3.21294871]
[1763574044964,1.47717681,2914.0,2913.5,0.00514871]
[1763574045367,4.68497681,2914.0,2913.5,0.00514871]
[1763574045567,1.47717681,2914.0,2913.5,0.00514871]
[1763574045863,4.68497681,2914.0,2913.5,0.00514871]
[1763574046267,3.2078,2913.6,2913.5,0.00514871]
[1763574046660,3.2078,2913.6,2912.8,12.36928]
[1763574046661,1.4688,2913.0,2912.8,12.36928]
[1763574046864,1.4688,2913.0,2912.0,3.2078]
[1763574047068,3.2078,2912.7,2912.0,3.2078]
[1763574047369,3.2078,2912.3,2911.6,3.2078]
[1763574047580,3.2078,2911.8,2911.7,0.00514871]
[1763574047759,3.21044808,2911.8,2911.7,0.00384494]
[1763574048070,0.55685,2911.7,2910.3,3.2078]
[1763574048271,3.2078,2911.0,2910.3,3.2078]
[1763574048771,3.2078,2911.0,2910.4,0.00514871]
[1763574049360,3.2078,2911.3,2910.4,0.00514871]
[1763574049568,3.2078,2910.6,2910.4,0.00514871]
[1763574049770,3.2078,2910.6,2910.3,0.00296371]
[1763574049965,3.2078,2910.6,2910.0,12.38116]
[1763574050169,3.2078,2910.1,2910.0,12.38116]
[1763574050362,3.2078,2910.2,2910.0,12.38116]
[1763574050570,3.2078,2910.5,2910.0,12.38116]
[1763574050761,3.21294871,2910.5,2910.0,12.38630871]
[1763574051070,3.21294871,2910.5,2910.0,12.39055685]
[1763574051269,3.2078,2910.2,2910.0,12.39055685]
[1763574051471,0.00514871,2910.5,2910.0,12.39055685]
[1763574051672,3.2078,2910.2,2910.0,12.39055685]
[1763574051970,3.21294871,2910.5,2910.0,15.59835685]
[1763574052266,0.00514871,2910.5,2910.3,3.2078]
[1763574053762,0.00514871,2910.5,2910.0,12.39055685]
[1763574053974,3.21294871,2910.5,2910.0,12.39055685]
[1763574054783,0.00514871,2910.5,2910.0,12.39055685]
[1763574055071,0.00514871,2910.5,2910.2,3.2078]
[1763574055270,3.2078,2911.6,2910.2,3.2078]
[1763574055468,3.2078,2911.6,2910.6,3.2078]
[1763574055664,3.2078,2911.3,2910.6,3.2078]
[1763574055864,3.2078,2911.0,2910.2,3.2078]
[1763574056071,3.76477,2911.0,2910.2,3.2078]
[1763574056266,3.2078,2910.6,2910.0,12.39055685]
[1763574056469,3.2078,2910.6,2910.1,3.2078]
[1763574057669,3.76993871,2910.9,2910.1,3.2078]
[1763574058372,3.2078,2910.5,2910.0,12.39055685]
[1763574060574,3.2078,2910.1,2910.0,0.00939685]
[1763574060769,3.2078,2910.1,2907.5,0.55763]
[1763574060770,7.50041947,2910.1,2908.7,3.2078]
[1763574060974,1.4688,2911.0,2907.0,1.5217]
[1763574060975,3.2078,2909.4,2908.8,1.5217]
[1763574061175,3.2078,2908.9,2908.1,3.2078]
[1763574061365,3.73547947,2909.6,2908.1,3.2078]
[1763574061366,3.2078,2909.7,2908.5,3.2078]
[1763574061775,3.2078,2909.1,2908.8,0.00514871]
[1763574061976,3.21294871,2909.4,2908.8,0.00514871]
[1763574062579,3.2078,2908.9,2908.8,0.00514871]
[1763574062976,0.55742,2908.7,2908.5,0.00346288]
[1763574063172,3.2078,2908.9,2908.8,1.5163]
[1763574063375,2.587e-05,2909.7,2908.8,2.07368]
[1763574063579,3.2078,2910.7,2909.7,1.5163]
[1763574063782,3.2078,2910.7,2909.9,3.2078]
[1763574063983,0.55695,2911.1,2910.5,3.2078]
[1763574064179,0.55695,2911.1,2909.7,1.5163]
[1763574064180,0.55695,2911.1,2910.2,3.2078]
[1763574064477,0.00514871,2910.9,2910.4,0.00514871]
[1763574064670,3.2078,2910.5,2909.2,6.7268]
[1763574064877,0.55713,2910.2,2909.2,6.7268]
[1763574065083,0.55716,2910.0,2909.2,3.2078]
[1763574065278,3.2078,2910.2,2909.2,3.2078]
[1763574065583,3.2078,2909.9,2909.4,0.00514871]
[1763574065780,3.2078,2909.5,2909.4,0.00514871]
[1763574065978,3.2078,2909.5,2908.5,0.00346288]
[1763574066178,3.76512,2909.2,2908.5,0.00346288]
[1763574066476,3.2078,2908.6,2908.0,1.5217]
[1763574066670,3.2078,2908.3,2908.0,1.5217]
[1763574067076,3.2078,2908.3,2907.9,0.00349207]
[1763574067275,0.00515764,2908.4,2907.9,3.21129207]
[1763574067480,0.00515764,2908.4,2908.0,1.5163]
[1763574067782,0.00947097,2908.4,2908.0,4.7241]
[1763574067975,3.21727097,2908.4,2907.9,0.00650978]
[1763574068177,3.2078,2908.1,2907.9,0.00650978]
[1763574068380,3.76533,2908.1,2907.6,12.39127]
[1763574068783,7.50086947,2907.8,2907.6,12.0584136]
[1763574069077,3.2078,2907.8,2907.2,3.2078]
[1763574069282,0.00947097,2908.4,2907.6,3.2078]
[1763574069481,0.00947097,2908.4,2908.2,3.2078]
[1763574070283,3.2078,2909.7,2908.2,9.2078]
[1763574070583,12.381,2911.6,2909.3,3.2078]
[1763574070584,3.2078,2910.3,2909.3,3.2078]
[1763574070786,3.2078,2910.3,2909.0,1.5163]
[1763574070787,3.2078,2910.6,2909.6,3.2078]
[1763574070975,3.2078,2910.6,2910.0,4.7241]
[1763574071179,3.2078,2910.6,2910.0,1.5163]
[1763574071385,3.21600007,2910.6,2910.0,1.52480257]
[1763574071585,3.2078,2910.1,2910.0,0.00850257]
[1763574072179,0.00820007,2910.6,2910.0,0.00850257]
[1763574072376,0.00820007,2910.6,2910.0,3.21630257]
[1763574072580,3.2078,2910.2,2910.0,0.00850257]
[1763574073282,3.2078,2910.2,2909.5,3.2078]
[1763574073473,3.2078,2909.6,2909.0,1.5163]
[1763574073679,3.2078,2909.9,2909.1,3.2078]
[1763574074382,3.2078,2909.9,2909.4,3.2078]
[1763574074987,3.2078,2909.9,2909.1,0.00257173]
[1763574075174,3.2078,2910.5,2909.4,3.2078]
[1763574075379,3.2078,2910.5,2909.7,3.2078]
[1763574075576,0.55699,2910.9,2909.7,3.2078]
[1763574075577,3.2078,2911.8,2910.3,3.2078]
[1763574075884,3.2078,2912.4,2911.7,1.5163]
[1763574076184,0.55636,2914.2,2911.8,4.3841196]
[1763574076382,4.29183947,2914.2,2911.8,8.08192336]
[1763574076580,3.73811057,2914.2,2911.8,4.38712959]
[1763574076885,6.94327947,2913.2,2912.7,0.00515764]
[1763574077090,6.94327947,2913.2,2912.5,3.2078]
[1763574077091,3.2078,2913.0,2912.4,3.2078]
[1763574077290,3.2078,2912.8,2911.8,0.00300999]
[1763574077587,0.00515764,2913.3,2912.7,3.2078]
[1763574077788,0.00515764,2913.3,2913.0,3.2078]
[1763574078276,0.0026311,2914.2,2913.1,4.47488452]
[1763574078482,0.0026311,2914.2,2914.1,3.2078]